bitfinex-derivatives/quotes_BTCF0:USTF0_20240902
["timestamp","ask_amount","ask_price","bid_price","bid_amount"]
[1725293917341,0.303972,58623.0,58622.0,0.00125572]
[1725293918443,0.664772,58623.0,58622.0,0.00125572]
[1725293919651,0.750058,58623.0,58622.0,0.00125572]
[1725293920050,0.085299,58614.0,58612.0,0.05100983]
[1725293920245,0.0004,58613.0,58612.0,0.05100983]
[1725293920446,0.085302,58612.0,58611.0,0.41180983]
[1725293920750,0.085702,58612.0,58611.0,0.41180983]
[1725293920946,0.085702,58612.0,58611.0,0.3608]
[1725293921544,0.080702,58612.0,58611.0,0.3608]
[1725293922546,0.080702,58612.0,58607.0,0.16281311]
[1725293922847,0.12,58610.0,58609.0,0.05109071]
[1725293923048,0.12,58610.0,58608.0,0.05109071]
[1725293923049,0.085306,58609.0,58608.0,0.05109071]
[1725293923349,0.079706,58609.0,58608.0,0.05109071]
[1725293924356,0.085308,58608.0,58607.0,0.14589071]
[1725293924652,0.085708,58608.0,58607.0,0.14589071]
[1725293925349,0.085708,58608.0,58607.0,0.09818167]
[1725293925652,0.085708,58608.0,58607.0,0.0471]
[1725293928751,0.085309,58607.0,58606.0,0.00025572]
[1725293928944,0.205709,58607.0,58606.0,0.00025572]
[1725293929147,0.291018,58607.0,58606.0,0.00025572]
[1725293930357,0.302018,58607.0,58606.0,0.00025572]
[1725293930657,0.313018,58607.0,58606.0,0.00025572]
[1725293932260,0.398327,58607.0,58606.0,0.00025572]
[1725293934056,0.759127,58607.0,58606.0,0.00025572]
[1725293934256,0.673818,58607.0,58606.0,0.00025572]
[1725293942062,0.553818,58607.0,58606.0,0.00025572]
[1725293942253,0.673818,58607.0,58606.0,0.00025572]
[1725293942561,0.107709,58607.0,58606.0,0.00025572]
[1725293942859,0.227709,58607.0,58606.0,0.00025572]
[1725293943654,0.313018,58607.0,58606.0,0.00025572]
[1725293943965,0.085322,58598.0,58597.0,0.05108167]
[1725293944267,0.085325,58596.0,58595.0,0.10088167]
[1725293944453,0.085725,58596.0,58595.0,0.10088167]
[1725293945051,0.085725,58596.0,58595.0,0.0498]
[1725293946470,0.103725,58596.0,58595.0,0.0508]
[1725293948569,0.103725,58596.0,58595.0,0.10188167]
[1725293948765,0.103725,58596.0,58595.0,0.0508]
[1725293949168,0.103725,58596.0,58595.0,0.001]
[1725293950168,0.18905,58596.0,58595.0,0.001]
[1725293951467,0.19268828,58596.0,58595.0,0.001]
[1725293953169,0.10736328,58596.0,58595.0,0.001]
[1725293953469,0.22736328,58596.0,58595.0,0.001]
[1725293953659,0.22736328,58596.0,58595.0,0.05208167]
[1725293954063,0.22736328,58596.0,58595.0,0.001]
[1725293954362,0.22736328,58596.0,58595.0,0.05208167]
[1725293956574,0.22736328,58596.0,58595.0,0.05213703]
[1725293957367,0.22736328,58596.0,58595.0,0.001]
[1725293957766,0.22736328,58596.0,58595.0,0.05214768]
[1725293957966,0.22736328,58596.0,58595.0,0.001]
[1725293961477,0.22736328,58596.0,58595.0,0.06901311]
[1725293962784,0.22736328,58596.0,58595.0,0.15434011]
[1725293963079,0.223725,58596.0,58595.0,0.15434011]
[1725293965074,0.223725,58596.0,58595.0,0.086327]
[1725293965983,0.223725,58596.0,58595.0,0.1545751]
[1725293967277,0.223725,58596.0,58595.0,0.0692481]
[1725293967984,0.223725,58596.0,58595.0,0.001]
[1725293968581,0.223725,58596.0,58595.0,0.06925383]
[1725293968781,0.223725,58596.0,58595.0,0.001]
[1725293968982,0.223725,58596.0,58595.0,0.06925377]
[1725293969180,0.223725,58596.0,58595.0,0.001]
[1725293972484,0.0184,58596.0,58595.0,0.086327]
[1725293972682,0.0184,58596.0,58595.0,1.49902285]
[1725293973078,0.0004,58598.0,58597.0,0.170648]
[1725293973277,0.0004,58598.0,58597.0,0.78188985]
[1725293973474,0.0004,58598.0,58597.0,1.80852585]
[1725293973783,0.0004,58598.0,58597.0,1.85382585]
[1725293974285,0.00025594,58601.0,58600.0,0.085319]
[1725293974586,0.00025594,58601.0,58600.0,0.205719]
[1725293974787,0.08557394,58601.0,58600.0,0.0004]
[1725293974989,0.17089194,58601.0,58600.0,0.0004]
[1725293975579,1.04089194,58601.0,58600.0,0.0004]
[1725293975989,1.04089194,58601.0,58600.0,0.05257854]
[1725293975990,1.05489194,58601.0,58600.0,0.05257854]
[1725293976186,1.05489194,58601.0,58600.0,0.0014]
[1725293976689,1.0585207,58601.0,58600.0,0.0014]
[1725293976888,1.0645207,58601.0,58600.0,0.0024]
[1725293980887,1.4253207,58601.0,58600.0,0.0024]
[1725293989796,0.5553207,58601.0,58600.0,0.0024]
[1725293992992,1.4253207,58601.0,58600.0,0.0024]
[1725293996495,1.5106387,58601.0,58600.0,0.0024]
[1725293997993,1.6306387,58601.0,58600.0,0.0024]
[1725294000287,1.5106387,58601.0,58600.0,0.0024]
[1725294000491,1.6306387,58601.0,58600.0,0.0024]
[1725294008599,1.6306387,58601.0,58592.0,0.0471]
[1725294008600,0.085324,58597.0,58592.0,0.0471]
[1725294008790,0.53186,58593.0,58592.0,0.0471]
[1725294009197,1.40186,58593.0,58592.0,0.0471]
[1725294010198,1.40586,58593.0,58592.0,0.0471]
[1725294010404,0.170666,58591.0,58590.0,0.05783448]
[1725294010595,0.170666,58591.0,58590.0,0.00665594]
[1725294010596,0.291066,58591.0,58590.0,0.00665594]
[1725294011605,0.293066,58591.0,58590.0,0.00665594]
[1725294013805,0.319066,58591.0,58590.0,0.00865594]
[1725294015793,0.170686,58584.0,58581.0,0.05117854]
[1725294015995,0.170686,58584.0,58577.0,0.11773424]
[1725294015996,0.4808,58582.0,58578.0,0.05117854]
[1725294016197,0.205352,58578.0,58577.0,0.0495]
[1725294016705,0.206152,58578.0,58577.0,0.0495]
[1725294016906,0.205152,58578.0,58577.0,0.0495]
[1725294017706,0.207152,58578.0,58577.0,0.0495]
[1725294018400,0.208152,58578.0,58577.0,0.0495]
[1725294018707,0.213152,58578.0,58577.0,0.0505]
[1725294020007,0.219152,58578.0,58577.0,0.0515]
[1725294020197,0.212152,58578.0,58577.0,0.0505]
[1725294020398,0.222152,58578.0,58577.0,0.0505]
[1725294020798,0.224152,58578.0,58577.0,0.0505]
[1725294025706,0.224152,58578.0,58577.0,0.001]
[1725294029111,0.309504,58578.0,58577.0,0.001]
[1725294033114,1.179504,58578.0,58577.0,0.001]
[1725294038915,0.0198,58578.0,58577.0,0.001]
[1725294039316,0.0198,58578.0,58577.0,0.046]
[1725294039616,0.0198,58578.0,58577.0,0.131353]
[1725294040213,0.0198,58578.0,58577.0,1.243513]
[1725294040815,0.0198,58578.0,58577.0,1.24713842]
[1725294041215,0.0198,58578.0,58577.0,0.64713842]
[1725294041816,0.105152,58578.0,58577.0,0.131353]
[1725294043128,0.105152,58578.0,58577.0,0.086353]
[1725294044015,0.10868613,58578.0,58577.0,0.086353]
[1725294045220,0.10868613,58578.0,58577.0,0.001]
[1725294046617,0.0198,58578.0,58577.0,0.086353]
[1725294047125,0.0198,58578.0,58577.0,0.15458724]
[1725294048229,0.105152,58578.0,58577.0,0.15458724]
[1725294049431,0.105152,58578.0,58577.0,0.086353]
[1725294050027,0.105152,58578.0,58577.0,0.15458724]
[1725294050224,0.105152,58578.0,58577.0,0.086353]
[1725294051532,0.105152,58578.0,58577.0,0.15458724]
[1725294052126,0.105152,58578.0,58577.0,0.086353]
[1725294054132,0.225152,58578.0,58577.0,0.086353]
[1725294054337,0.225152,58578.0,58577.0,0.15461228]
[1725294055528,0.225152,58578.0,58577.0,0.06925928]
[1725294057230,0.310504,58578.0,58577.0,0.06925928]
[1725294057432,0.310504,58578.0,58577.0,0.001]
[1725294057845,1.180504,58578.0,58577.0,0.001]
[1725294058732,0.310504,58578.0,58577.0,0.001]
[1725294059235,1.180504,58578.0,58577.0,0.001]
[1725294065943,0.105152,58578.0,58577.0,0.001]
[1725294068648,0.151552,58578.0,58577.0,0.001]
[1725294076046,0.105152,58578.0,58577.0,0.001]
[1725294079653,0.225152,58578.0,58577.0,0.001]
[1725294080547,0.0198,58578.0,58577.0,0.206353]
[1725294080750,0.0198,58578.0,58577.0,0.27461228]
[1725294080961,0.0198,58578.0,58577.0,0.206353]
[1725294081456,0.0198,58578.0,58577.0,0.27461228]
[1725294082058,0.0198,58578.0,58577.0,0.206353]
[1725294083061,0.0128,58578.0,58577.0,0.206353]
[1725294083758,0.0098,58578.0,58577.0,0.206353]
[1725294084149,0.0018,58578.0,58577.0,0.211353]
[1725294084356,0.0018,58578.0,58577.0,0.723513]
[1725294084756,0.0018,58578.0,58577.0,1.327513]
[1725294088356,0.0008,58578.0,58577.0,1.402866]
[1725294088665,0.0008,58578.0,58577.0,1.411866]
[1725294089258,0.00025594,58583.0,58582.0,0.170692]
[1725294089451,0.00025594,58583.0,58582.0,0.651492]
[1725294090266,0.00025594,58583.0,58582.0,0.73679859]
[1725294090468,0.3608,58599.0,58582.0,1.678226]
[1725294090657,0.085323,58598.0,58594.0,0.12]
[1725294090854,0.085323,58598.0,58597.0,0.12]
[1725294091263,0.085323,58598.0,58597.0,0.17111287]
[1725294091563,0.085323,58598.0,58597.0,0.12]
[1725294091868,0.086323,58598.0,58597.0,0.205324]
[1725294092462,0.085323,58598.0,58597.0,0.205324]
[1725294092769,0.087323,58598.0,58597.0,0.211324]
[1725294093152,0.002,58598.0,58597.0,0.211324]
[1725294093569,0.08532,58600.0,58599.0,0.085321]
[1725294094867,0.08532,58600.0,58599.0,0.086321]
[1725294096964,0.08532,58600.0,58599.0,0.085721]
[1725294097264,0.08932,58600.0,58599.0,0.085721]
[1725294097972,0.09132,58600.0,58599.0,0.086721]
[1725294100472,0.09132,58600.0,58599.0,0.0014]
[1725294100656,0.08532,58600.0,58599.0,0.0004]
[1725294100967,0.08832,58600.0,58599.0,0.0004]
[1725294102568,0.61976,58600.0,58599.0,0.0004]
[1725294102758,0.61676,58600.0,58599.0,0.0004]
[1725294102957,0.25599,58593.0,58592.0,0.00025594]
[1725294103158,1.52146,58593.0,58592.0,0.00025594]
[1725294104154,1.52746,58593.0,58592.0,0.00225594]
[1725294104757,1.52746,58593.0,58592.0,0.00125594]
[1725294104962,1.52746,58593.0,58592.0,0.00225594]
[1725294106266,1.57496,58593.0,58592.0,0.00225594]
[1725294106461,1.58296,58593.0,58592.0,0.00225594]
[1725294106861,1.5865372,58593.0,58592.0,0.00225594]
[1725294110667,1.2257372,58593.0,58592.0,0.00225594]
[1725294110884,1.5865372,58593.0,58592.0,0.00225594]
[1725294112377,1.2257372,58593.0,58592.0,0.00225594]
[1725294112575,1.5865372,58593.0,58592.0,0.00225594]
[1725294113565,1.6718672,58593.0,58592.0,0.00225594]
[1725294124205,1.6718672,58593.0,58580.0,0.00363493]
[1725294124206,1.6718672,58593.0,58579.0,0.3608]
[1725294124380,1.6718672,58593.0,58570.0,0.40900659]
[1725294124381,0.085352,58578.0,58577.0,0.0008]
[1725294125377,0.085352,58578.0,58577.0,0.0058]
[1725294126384,0.094352,58578.0,58577.0,0.0068]
[1725294127783,0.094352,58578.0,58577.0,0.0018]
[1725294129179,0.094352,58578.0,58577.0,0.1218]
[1725294129985,0.009,58578.0,58577.0,1.319313]
[1725294130577,0.009,58578.0,58577.0,1.680113]
[1725294130894,0.009,58578.0,58577.0,1.74824294]
[1725294131385,0.009,58578.0,58577.0,1.680113]
[1725294133377,0.009,58578.0,58577.0,0.567953]
[1725294133579,0.094352,58578.0,58577.0,0.567953]
[1725294135880,0.094352,58578.0,58577.0,0.0018]
[1725294136796,0.265056,58578.0,58577.0,0.0018]
[1725294137096,0.265056,58578.0,58577.0,0.07004347]
[1725294137296,0.265056,58578.0,58577.0,0.0018]
[1725294137907,0.265056,58578.0,58577.0,0.07004347]
[1725294138088,0.265056,58578.0,58577.0,0.0018]
[1725294138893,0.18320193,58578.0,58577.0,0.07004347]
[1725294139099,0.18320193,58578.0,58577.0,0.19004347]
[1725294139892,0.18320193,58578.0,58577.0,0.07004347]
[1725294140099,0.09784993,58578.0,58577.0,0.07004347]
[1725294140299,0.094352,58578.0,58577.0,0.07004347]
[1725294141097,0.094352,58578.0,58577.0,0.15539647]
[1725294141297,0.094352,58578.0,58577.0,0.15539687]
[1725294141487,0.094352,58578.0,58577.0,0.087153]
[1725294144802,0.094352,58578.0,58577.0,0.0018]
[1725294147590,0.094352,58578.0,58577.0,0.07005442]
[1725294148702,0.094352,58578.0,58577.0,0.0018]
[1725294149099,0.094352,58578.0,58577.0,0.0700587]
[1725294151814,0.094352,58578.0,58577.0,0.0018]
[1725294152505,0.094352,58578.0,58577.0,0.087153]
[1725294153099,0.094352,58578.0,58577.0,0.287153]
[1725294153513,0.094352,58578.0,58577.0,0.37245959]
[1725294153703,0.094352,58578.0,58577.0,0.50253902]
[1725294153901,0.094352,58578.0,58577.0,0.50256671]
[1725294154209,0.094352,58578.0,58577.0,0.41723243]
[1725294154399,0.094352,58578.0,58577.0,0.41723051]
[1725294154899,0.087352,58578.0,58577.0,0.42023051]
[1725294155301,0.002,58578.0,58577.0,0.42023051]
[1725294155498,0.002,58578.0,58577.0,0.42123051]
[1725294155699,0.085348,58581.0,58580.0,0.085349]
[1725294155893,0.085348,58581.0,58580.0,0.085749]
[1725294156798,0.085348,58581.0,58580.0,0.446549]
[1725294157209,0.085348,58581.0,58580.0,0.448549]
[1725294157905,0.089348,58581.0,58580.0,0.450549]
[1725294158507,0.085348,58581.0,58580.0,0.450549]
[1725294158709,0.087348,58581.0,58580.0,0.450549]
[1725294158911,0.002,58581.0,58580.0,0.450549]
[1725294160009,0.002,58581.0,58580.0,0.570549]
[1725294160808,0.002,58581.0,58580.0,0.87130445]
[1725294161507,0.002,58581.0,58580.0,0.87230351]
[1725294161709,0.00025594,58583.0,58582.0,0.085346]
[1725294161913,0.00025594,58583.0,58582.0,0.085746]
[1725294165016,0.00225594,58583.0,58582.0,0.089746]
[1725294165517,0.00225594,58583.0,58582.0,0.090746]
[1725294165915,0.00125594,58583.0,58582.0,0.090746]
[1725294167220,0.00125594,58583.0,58582.0,0.089746]
[1725294167911,0.00225594,58583.0,58582.0,0.089746]
[1725294169324,0.20759994,58583.0,58582.0,0.15797311]
[1725294169511,0.20759994,58583.0,58582.0,0.15797395]
[1725294169916,0.20759994,58583.0,58582.0,0.089746]
[1725294170241,0.20759994,58583.0,58582.0,0.157973]
[1725294171419,0.20759994,58583.0,58582.0,0.089746]
[1725294171611,0.20759994,58583.0,58582.0,0.157973]
[1725294171917,0.20759994,58583.0,58582.0,0.089746]
[1725294172519,0.20759994,58583.0,58582.0,0.0044]
[1725294176117,0.08759994,58583.0,58582.0,0.0044]
[1725294178317,0.08759994,58583.0,58582.0,0.072627]
[1725294178717,0.08759994,58583.0,58582.0,0.0044]
[1725294178925,0.08759994,58583.0,58582.0,0.072627]
[1725294179129,0.08759994,58583.0,58582.0,0.0044]
[1725294179323,0.08759994,58583.0,58582.0,0.072627]
[1725294182528,0.08759994,58583.0,58582.0,0.0044]
[1725294189534,0.17294394,58583.0,58582.0,0.0044]
[1725294189834,0.22014394,58583.0,58582.0,0.0044]
[1725294193331,0.22014394,58583.0,58582.0,0.05560724]
[1725294194035,0.22014394,58583.0,58582.0,0.0044]
[1725294196040,0.22014394,58583.0,58582.0,0.05560472]
[1725294196235,0.17294394,58583.0,58582.0,0.05560472]
[1725294196434,0.00225594,58583.0,58582.0,0.0044]
[1725294196634,0.08759994,58583.0,58582.0,0.0044]
[1725294196836,0.00225594,58583.0,58582.0,0.089746]
[1725294197937,0.08759994,58583.0,58582.0,0.089746]
[1725294199743,0.00225594,58583.0,58582.0,0.21324366]
[1725294202349,0.00225594,58583.0,58582.0,0.29858966]
[1725294203444,0.00125594,58583.0,58582.0,0.29858966]
[1725294203642,0.00125594,58583.0,58582.0,0.29458966]
[1725294203851,0.00125594,58583.0,58582.0,0.30058966]
[1725294204152,0.00025594,58583.0,58582.0,0.30058966]
[1725294205353,0.00025594,58583.0,58582.0,0.47128817]
[1725294205544,0.00025594,58583.0,58582.0,1.62808232]
[1725294205750,0.085325,58596.0,58595.0,0.085325]
[1725294205945,0.085325,58596.0,58595.0,0.085725]
[1725294206140,0.085325,58596.0,58595.0,0.13690482]
[1725294206449,0.085325,58596.0,58595.0,0.085725]
[1725294206649,0.3608,58600.0,58595.0,0.0004]
[1725294206853,0.00025594,58601.0,58600.0,0.085319]
[1725294208347,0.00025594,58601.0,58600.0,0.1364038]
[1725294208556,0.00025594,58601.0,58600.0,0.1374038]
[1725294208757,0.00025594,58601.0,58600.0,0.086319]
[1725294209256,0.20557394,58601.0,58600.0,0.001]
[1725294210049,0.20557394,58601.0,58600.0,0.004]
[1725294210264,0.20757394,58601.0,58600.0,0.004]
[1725294210858,0.085319,58600.0,58599.0,0.0004]
[1725294211357,0.085719,58600.0,58599.0,0.0004]
[1725294213456,0.098719,58600.0,58599.0,0.0014]
[1725294217052,0.10222113,58600.0,58599.0,0.0014]
[1725294219762,0.10222113,58600.0,58599.0,0.1214]
[1725294221664,0.09722113,58600.0,58599.0,0.0014]
[1725294221865,0.09722113,58600.0,58599.0,0.1214]
[1725294222057,0.093719,58600.0,58599.0,0.206721]
[1725294223470,0.0084,58600.0,58599.0,0.2578058]
[1725294223658,0.0104,58600.0,58599.0,0.2578058]
[1725294223967,0.0104,58600.0,58599.0,0.206721]
[1725294224966,0.0074,58600.0,58599.0,0.206721]
[1725294226369,0.0074,58600.0,58599.0,0.212721]
[1725294226760,0.0074,58600.0,58599.0,0.215721]
[1725294227565,0.0074,58600.0,58599.0,1.84204176]
[1725294227767,0.0004,58600.0,58599.0,1.772802]
[1725294228468,0.0004,58600.0,58599.0,1.98811668]
[1725294228662,0.0004,58600.0,58599.0,1.99011668]
[1725294228861,0.0004,58600.0,58599.0,1.98111668]
[1725294229170,0.0004,58600.0,58599.0,1.8651017]
[1725294229474,0.0004,58600.0,58599.0,1.8511017]
[1725294229661,0.0004,58600.0,58599.0,1.8611017]
[1725294230057,0.0004,58600.0,58599.0,1.8511017]
[1725294230274,0.0004,58600.0,58599.0,1.8601017]
[1725294230459,0.0004,58600.0,58599.0,1.8581017]
[1725294230767,0.0004,58600.0,58599.0,1.8621017]
[1725294231370,0.085298,58615.0,58607.0,0.085309]
[1725294231554,0.085278,58629.0,58615.0,0.085298]
[1725294231555,0.3608,58616.0,58615.0,0.085298]
[1725294231763,0.3608,58616.0,58615.0,0.085698]
[1725294232071,0.3608,58616.0,58615.0,0.085298]
[1725294232072,0.446096,58616.0,58615.0,0.085298]
[1725294232969,0.446096,58616.0,58615.0,0.087298]
[1725294234056,0.460096,58616.0,58615.0,0.088298]
[1725294234770,0.099296,58616.0,58615.0,0.088298]
[1725294235077,0.093296,58616.0,58615.0,0.088298]
[1725294235660,0.093296,58616.0,58615.0,0.003]
[1725294246475,0.298592,58616.0,58615.0,0.003]
[1725294246777,0.383888,58616.0,58615.0,0.003]
[1725294247480,1.253888,58616.0,58615.0,0.003]
[1725294248581,2.365688,58616.0,58615.0,0.003]
[1725294249277,0.255909,58611.0,58610.0,0.00025594]
[1725294249482,0.737109,58611.0,58610.0,0.00025594]
[1725294249683,0.531806,58611.0,58610.0,0.00025594]
[1725294249975,0.651806,58611.0,58610.0,0.00025594]
[1725294250775,0.654806,58611.0,58610.0,0.00425594]
[1725294251683,0.651806,58611.0,58610.0,0.00425594]
[1725294251886,0.665806,58611.0,58610.0,0.00525594]
[1725294252886,0.665806,58611.0,58610.0,0.00225594]
[1725294253182,0.66938572,58611.0,58610.0,0.00225594]
[1725294254075,1.78122572,58611.0,58610.0,0.00225594]
[1725294256181,0.66938572,58611.0,58610.0,0.00225594]
[1725294256374,1.26938572,58611.0,58610.0,0.00225594]
[1725294256579,0.66938572,58611.0,58610.0,0.00225594]
[1725294256774,1.78122572,58611.0,58610.0,0.00225594]
[1725294256979,0.66938572,58611.0,58610.0,0.00225594]
[1725294258086,0.75468872,58611.0,58610.0,0.00225594]
[1725294258393,1.26652872,58611.0,58610.0,0.00225594]
[1725294259390,1.86652872,58611.0,58610.0,0.00225594]
[1725294260282,1.86652872,58611.0,58600.0,0.12]
[1725294260283,0.085318,58601.0,58600.0,0.12]
[1725294260588,0.085718,58601.0,58600.0,0.12]
[1725294261580,0.089718,58601.0,58600.0,0.12]
[1725294261785,0.085321,58599.0,58598.0,0.05103632]
[1725294261986,0.085721,58599.0,58598.0,0.05103632]
[1725294262186,0.082721,58599.0,58598.0,0.05103632]
[1725294262387,0.170644,58598.0,58597.0,0.05103632]
[1725294262585,0.170644,58598.0,58596.0,0.05103632]
[1725294262586,0.255972,58597.0,58596.0,0.05103632]
[1725294262887,0.255975,58596.0,58595.0,0.00025594]
[1725294263189,0.256375,58596.0,58595.0,0.00025594]
[1725294263389,2.238375,58596.0,58595.0,0.00025594]
[1725294263784,2.233375,58596.0,58595.0,0.00025594]
[1725294264690,2.23699297,58596.0,58595.0,0.00025594]
[1725294265592,1.63899297,58596.0,58595.0,0.00025594]
[1725294266082,1.65299297,58596.0,58595.0,0.00225594]
[1725294266990,2.01379297,58596.0,58595.0,0.00225594]
[1725294268983,1.50179297,58596.0,58595.0,0.00225594]
[1725294271781,1.41646797,58596.0,58595.0,0.00225594]
[1725294271991,1.53646797,58596.0,58595.0,0.00225594]
[1725294277896,1.17566797,58596.0,58595.0,0.00225594]
[1725294283002,1.53646797,58596.0,58595.0,0.00225594]
[1725294289091,0.54646797,58596.0,58595.0,0.00225594]
[1725294289296,0.66646797,58596.0,58595.0,0.00225594]
[1725294290200,0.30566797,58596.0,58595.0,0.00225594]
[1725294294808,0.66646797,58596.0,58595.0,0.00225594]
[1725294296505,0.30566797,58596.0,58595.0,0.00225594]
[1725294296816,0.66646797,58596.0,58595.0,0.00225594]
[1725294297899,0.30566797,58596.0,58595.0,0.00225594]
[1725294298205,0.66646797,58596.0,58595.0,0.00225594]
[1725294303812,0.30566797,58596.0,58595.0,0.00225594]
[1725294305115,0.48519297,58596.0,58595.0,0.00225594]
[1725294307124,0.481575,58596.0,58595.0,0.00225594]
[1725294310215,0.17066,58593.0,58592.0,0.05103632]
[1725294310520,0.29106,58593.0,58592.0,0.05103632]
[1725294311422,0.29106,58593.0,58592.0,0.05203632]
[1725294311423,0.30506,58593.0,58592.0,0.05203632]
[1725294311920,0.30506,58593.0,58592.0,0.05303632]
[1725294311921,0.30706,58593.0,58592.0,0.05303632]
[1725294312522,0.10173,58593.0,58592.0,0.05303632]
[1725294313026,0.10173,58593.0,58592.0,0.002]
[1725294325127,0.10173,58593.0,58592.0,0.05322408]
[1725294325348,0.10173,58593.0,58592.0,0.002]
[1725294327637,0.0164,58593.0,58592.0,0.087331]
[1725294328021,0.0164,58593.0,58592.0,0.183231]
[1725294328228,0.10173,58593.0,58592.0,0.183231]
[1725294328525,0.30706,58593.0,58592.0,0.07026987]
[1725294328732,0.30706,58593.0,58592.0,0.002]
[1725294330336,0.30706,58593.0,58592.0,0.05320457]
[1725294330632,0.22173,58593.0,58592.0,0.002]
[1725294330833,0.22173,58593.0,58592.0,0.05320449]
[1725294331433,0.22173,58593.0,58592.0,0.002]
[1725294331627,0.22173,58593.0,58592.0,0.05320444]
[1725294334041,0.22173,58593.0,58592.0,0.002]
[1725294337441,0.39239,58593.0,58592.0,0.002]
[1725294337641,0.1364,58593.0,58587.0,0.05120669]
[1725294337832,0.1364,58593.0,58586.0,0.05120669]
[1725294337833,0.170676,58587.0,58586.0,0.05120669]
[1725294338139,1.041076,58587.0,58584.0,0.0012]
[1725294338334,0.291082,58585.0,58584.0,0.0012]
[1725294338640,0.290682,58585.0,58584.0,0.0012]
[1725294339636,0.205341,58585.0,58584.0,0.0012]
[1725294340739,0.213341,58585.0,58584.0,0.0022]
[1725294341541,0.219341,58585.0,58584.0,0.0022]
[1725294341934,0.221341,58585.0,58584.0,0.0022]
[1725294342537,0.224341,58585.0,58584.0,0.0032]
[1725294347036,0.224341,58585.0,58584.0,0.05434787]
[1725294347843,0.224341,58585.0,58584.0,0.0032]
[1725294348352,0.309682,58585.0,58584.0,0.0032]
[1725294350157,1.507103,58585.0,58584.0,0.0032]
[1725294350450,1.507103,58585.0,58572.0,0.05114787]
[1725294350451,0.085359,58573.0,58572.0,0.05114787]
[1725294351341,0.08536,58572.0,58571.0,0.05114787]
[1725294351548,0.20536,58572.0,58571.0,0.05114787]
[1725294352145,0.20336,58572.0,58571.0,0.05114787]
[1725294352345,0.085362,58571.0,58570.0,0.05114787]
[1725294352742,0.082362,58571.0,58570.0,0.05114787]
[1725294353352,0.085363,58570.0,58569.0,0.05114787]
[1725294354043,0.085365,58569.0,58568.0,0.3608]
[1725294354240,0.085365,58569.0,58568.0,0.4808]
[1725294355654,0.17073,58569.0,58568.0,0.53187226]
[1725294355952,0.089365,58569.0,58568.0,0.53187226]
[1725294356157,0.089365,58569.0,58568.0,0.4808]
[1725294356955,0.099365,58569.0,58568.0,0.4818]
[1725294357945,0.090165,58569.0,58568.0,0.566166]
[1725294358160,0.099165,58569.0,58568.0,0.567166]
[1725294358357,0.095165,58569.0,58568.0,0.567166]
[1725294358653,0.098165,58569.0,58568.0,0.567166]
[1725294360848,0.089165,58569.0,58568.0,0.567166]
[1725294361060,0.098165,58569.0,58568.0,0.567166]
[1725294361861,0.0038,58569.0,58568.0,1.678406]
[1725294362049,0.0108,58569.0,58568.0,1.74767587]
[1725294362448,0.0108,58569.0,58568.0,1.679406]
[1725294362649,0.0108,58569.0,58568.0,1.7475155]
[1725294363050,0.0088,58569.0,58568.0,1.7475155]
[1725294363257,0.0088,58569.0,58568.0,1.679406]
[1725294363663,0.0088,58569.0,58568.0,1.678406]
[1725294363965,0.0108,58569.0,58568.0,1.74752313]
[1725294364357,0.0108,58569.0,58568.0,1.679406]
[1725294364556,0.0018,58569.0,58568.0,1.678406]
[1725294364759,0.0028,58569.0,58568.0,1.678406]
[1725294365153,0.0018,58569.0,58568.0,1.683406]
[1725294365359,0.0018,58569.0,58568.0,1.768772]
[1725294367356,0.0018,58569.0,58568.0,1.85383253]
[1725294368153,0.0018,58569.0,58568.0,1.98391938]
[1725294368364,0.0008,58569.0,58568.0,1.85583253]
[1725294368564,0.0008,58569.0,58568.0,1.773772]
[1725294368767,0.0008,58569.0,58568.0,1.85883253]
[1725294369561,0.0008,58569.0,58568.0,1.85083253]
[1725294369761,0.085354,58576.0,58575.0,0.085356]
[1725294370065,0.085354,58576.0,58575.0,0.205356]
[1725294370260,0.085354,58576.0,58575.0,0.27354337]
[1725294371159,0.085354,58576.0,58575.0,0.27354907]
[1725294371364,0.085354,58576.0,58575.0,0.2735528]
[1725294371968,0.091354,58576.0,58575.0,0.2765528]
[1725294372458,0.092354,58576.0,58575.0,0.2745528]
[1725294372971,0.092354,58576.0,58575.0,0.27455708]
[1725294373369,0.007,58576.0,58575.0,0.206356]
[1725294373876,0.008,58576.0,58575.0,0.206356]
[1725294374569,0.001,58576.0,58575.0,0.205356]
[1725294374772,0.08560894,58577.0,58576.0,0.085354]
[1725294376272,0.08560894,58577.0,58576.0,0.15356811]
[1725294376672,0.18480894,58577.0,58576.0,0.15356811]
[1725294377269,0.19446749,58577.0,58576.0,0.15456811]
[1725294378066,0.19546749,58577.0,58576.0,0.15456811]
[1725294378462,0.18946749,58577.0,58576.0,0.15356811]
[1725294378675,0.19746749,58577.0,58576.0,0.086354]
[1725294378976,0.19746749,58577.0,58576.0,0.15458614]
[1725294379978,0.19746749,58577.0,58576.0,0.086354]
[1725294382276,0.19746749,58577.0,58576.0,0.001]
[1725294384288,0.48817349,58577.0,58576.0,0.001]
[1725294384582,1.60033349,58577.0,58576.0,0.001]
[1725294385572,1.48033349,58577.0,58576.0,0.001]
[1725294385773,1.60033349,58577.0,58576.0,0.001]
[1725294386473,1.00033349,58577.0,58576.0,0.001]
[1725294387194,1.36113349,58577.0,58576.0,0.001]
[1725294390992,0.84897349,58577.0,58576.0,0.001]
[1725294392202,0.31746749,58577.0,58576.0,0.001]
[1725294392390,0.19746749,58577.0,58576.0,0.001]
[1725294392590,0.19746749,58577.0,58576.0,0.05218847]
[1725294393207,0.31746749,58577.0,58576.0,0.05218847]
[1725294394398,0.01025594,58577.0,58576.0,0.001]
[1725294394606,0.01025594,58577.0,58576.0,0.05218847]
[1725294395188,0.01025594,58577.0,58576.0,0.13754247]
[1725294396698,0.09560894,58577.0,58576.0,0.13754247]
[1725294402700,0.09560894,58577.0,58576.0,0.086354]
[1725294403304,0.26631494,58577.0,58576.0,0.001]